bitfinex/quotes_ETHUSD_20250711
["timestamp","ask_amount","ask_price","bid_price","bid_amount"]
[1752254346917,10.0,2981.1,2981.0,0.64]
[1752254348029,10.0,2981.1,2981.0,1.4479]
[1752254348429,0.82984455,2981.6,2981.0,1.4479]
[1752254348650,0.82984455,2981.6,2981.1,0.48604466]
[1752254348926,0.82984455,2981.6,2981.5,0.1672]
[1752254350206,2.1617105,2981.6,2981.5,0.1672]
[1752254350427,0.82984455,2981.6,2981.5,0.6197]
[1752254351943,0.82984455,2981.6,2981.5,1.4276]
[1752254353737,0.001,2981.9,2981.5,6.7666]
[1752254354038,0.001,2981.9,2981.6,0.4525]
[1752254354257,0.6877843,2981.9,2981.7,1.34737]
[1752254354553,0.001,2981.9,2981.8,0.6197]
[1752254355419,0.68795698,2981.9,2981.8,0.20073678]
[1752254355607,0.001,2981.9,2981.8,0.1672]
[1752254355807,0.001,2981.9,2981.8,0.84157379]
[1752254356043,0.001,2981.9,2981.8,1.29407379]
[1752254356742,0.001,2981.9,2981.8,2.10521057]
[1752254357309,0.1682,2983.1,2981.9,0.8325]
[1752254357520,0.1682,2983.1,2981.8,1.32761057]
[1752254357521,0.001,2983.1,2983.0,0.1672]
[1752254358008,0.4424,2983.1,2983.0,0.1672]
[1752254358229,0.71117687,2983.1,2982.9,0.1672]
[1752254358416,22.48881493,2983.0,2982.9,0.1672]
[1752254359021,10.0,2982.9,2982.1,6.1602]
[1752254359249,10.0,2982.3,2982.2,0.64955229]
[1752254359552,10.0,2982.3,2981.8,1.2747]
[1752254359712,10.0,2981.9,2981.8,6.6117]
[1752254360312,10.0,2982.3,2981.8,6.6117]
[1752254360612,10.0,2982.3,2981.9,1.14720566]
[1752254360833,10.0,2982.3,2981.9,0.69470566]
[1752254361044,10.0,2982.3,2982.0,0.4525]
[1752254361243,10.0,2982.3,2982.1,0.4525]
[1752254361944,10.0,2982.6,2982.2,0.4525]
[1752254362616,10.0,2982.6,2982.3,0.4525]
[1752254363149,10.0,2982.7,2981.9,0.66117]
[1752254363324,10.0,2982.7,2982.4,0.4525]
[1752254363522,10.0,2982.7,2982.4,0.48603004]
[1752254363847,10.0,2982.7,2982.4,0.4525]
[1752254364052,10.0,2982.7,2982.3,0.8014]
[1752254364228,10.0,2982.7,2982.5,0.4525]
[1752254364430,10.0,2982.7,2982.6,0.4525]
[1752254364630,11.50231167,2983.1,2982.6,0.4525]
[1752254365022,0.69661167,2983.1,2982.7,0.48602667]
[1752254365223,10.69661167,2983.1,2982.7,0.48602667]
[1752254365763,0.69661167,2983.1,2982.8,0.4525]
[1752254365967,10.69661167,2983.1,2982.8,0.4525]
[1752254366167,10.0,2983.0,2982.8,0.4525]
[1752254366329,0.69661167,2983.1,2982.9,0.8005]
[1752254366529,0.69661167,2983.1,2982.9,1.253]
[1752254366881,0.10413207,2984.3,2983.1,0.82]
[1752254367026,0.10413207,2984.3,2983.3,0.82]
[1752254367225,0.10413207,2984.3,2983.5,0.82]
[1752254367420,0.10413207,2984.3,2983.6,5.7865]
[1752254367725,0.10413207,2984.3,2983.7,0.4525]
[1752254368030,0.10413207,2984.3,2983.9,0.8178]
[1752254368545,0.10413207,2984.3,2984.0,5.334]
[1752254368926,0.10413207,2984.3,2984.0,5.333]
[1752254369126,1.43306413,2984.3,2983.4,0.8178]
[1752254369339,10.0,2984.2,2983.5,5.81901768]
[1752254369638,10.0,2984.2,2984.1,0.1672]
[1752254370036,0.10413207,2984.3,2984.1,0.1672]
[1752254370263,0.10413207,2984.3,2984.1,1.4522]
[1752254370425,0.10413207,2984.3,2984.1,2.13072]
[1752254371258,10.10413207,2984.3,2984.1,0.1672]
[1752254372056,0.10413207,2984.3,2984.2,0.4525]
[1752254372476,0.10413207,2984.3,2984.2,0.48600981]
[1752254372663,0.10413207,2984.3,2984.1,0.1672]
[1752254372825,0.10413207,2984.3,2984.2,0.55002]
[1752254373032,0.10413207,2984.3,2984.2,0.58352981]
[1752254373668,0.10413207,2984.3,2984.2,1.83732981]
[1752254373871,0.7721,2986.1,2984.7,0.8013]
[1752254374089,0.7721,2986.1,2984.9,0.8013]
[1752254374298,0.7721,2986.1,2985.0,5.81800083]
[1752254374582,0.7721,2986.1,2986.0,0.1672]
[1752254374778,1.46098419,2986.1,2986.0,0.1672]
[1752254375073,12.48881493,2986.2,2986.0,0.1672]
[1752254375260,0.005,2986.3,2986.0,0.1672]
[1752254375461,0.005,2986.3,2986.2,0.1672]
[1752254376669,0.4464,2986.3,2986.2,0.1672]
[1752254376831,0.71902515,2986.3,2986.2,0.1672]
[1752254377035,0.005,2986.3,2986.2,0.1672]
[1752254377349,0.69646589,2986.3,2986.2,0.1672]
[1752254377658,0.005,2986.3,2986.2,5.4982]
[1752254377834,0.005,2986.3,2986.2,6.05136896]
[1752254378036,0.005,2986.3,2986.2,0.1672]
[1752254378765,0.4534,2986.3,2986.2,0.1672]
[1752254379573,0.005,2986.3,2986.2,0.1672]
[1752254380179,10.0,2986.2,2985.6,5.33]
[1752254380477,2.08451402,2986.3,2986.2,0.1672]
[1752254380650,0.55,2985.9,2984.6,0.7876]
[1752254380849,10.0,2985.0,2984.6,5.329]
[1752254381083,10.0,2985.0,2984.9,0.1672]
[1752254381392,22.93721493,2985.0,2984.9,0.1672]
[1752254381542,22.48881493,2985.0,2984.9,0.1672]
[1752254382049,10.0,2985.0,2984.9,0.1672]
[1752254382249,10.0,2985.0,2984.9,0.65290195]
[1752254382454,10.0,2985.0,2984.9,1.4401]
[1752254383358,10.0,2985.0,2984.9,0.1672]
[1752254383555,10.4484,2985.0,2984.9,0.1672]
[1752254383780,10.0,2984.9,2984.6,5.329]
[1752254383980,10.55,2984.6,2984.5,0.1672]
[1752254384181,0.7172,2984.6,2984.1,0.1672]
[1752254384399,20.31100205,2984.2,2984.1,0.1672]
[1752254384571,20.75940205,2984.2,2984.1,0.1672]
[1752254384772,20.31100205,2984.2,2984.1,0.1672]
[1752254385504,10.7844,2984.2,2984.1,0.1672]
[1752254387905,11.2328,2984.2,2984.1,0.1672]
[1752254388089,3.3087402,2984.2,2983.8,0.1672]
[1752254388273,19.52660205,2983.9,2983.8,0.1672]
[1752254388477,0.7844,2984.2,2984.0,0.1672]
[1752254390013,10.0,2984.3,2983.7,0.4522]
[1752254390307,9.52660205,2984.4,2984.1,0.1672]
[1752254390308,19.52660205,2984.4,2984.1,0.1672]
[1752254391109,0.7993,2984.6,2984.1,0.1672]
[1752254391416,9.52660205,2984.4,2984.1,0.1672]
[1752254391577,9.52660205,2984.8,2984.2,0.4522]
[1752254391775,10.0,2984.7,2984.3,0.20070869]
[1752254391978,10.0,2984.7,2984.6,0.1672]
[1752254393179,9.52660205,2984.8,2984.6,0.1672]
[1752254393790,10.0,2984.7,2984.6,0.1672]
[1752254393992,9.69380205,2985.2,2984.7,0.4522]
[1752254394191,0.7501,2985.4,2985.1,0.1672]
[1752254394512,1.1985,2985.4,2985.1,0.1672]
[1752254394828,11.1985,2985.4,2985.1,0.1672]
[1752254396199,10.0,2985.4,2985.1,0.1672]
[1752254397139,10.0,2985.4,2985.2,0.8046]
[1752254397315,2.99867268,2987.4,2985.2,0.8046]
[1752254397498,25.95006699,2990.3,2988.2,0.5232]
[1752254397837,0.71598067,2990.2,2989.8,10.0]
[1752254398039,1.81200605,2992.2,2990.1,23.531]
[1752254398200,0.18120061,2992.1,2990.4,10.0]
[1752254398401,0.18120061,2992.1,2991.0,10.0]
[1752254398638,0.18120061,2992.1,2991.2,10.0]
[1752254398838,0.18120061,2992.1,2992.0,0.1664]
[1752254399040,1.54483908,2992.2,2992.0,0.04625784]
[1752254399340,2.92928409,2992.7,2991.9,5.83222967]
[1752254399341,0.4484,2992.1,2991.9,5.83222967]
[1752254399644,0.4484,2992.0,2991.9,5.99862967]
[1752254399856,9.9304687,2992.0,2991.9,5.83222967]
[1752254400145,19.9304687,2992.0,2991.9,5.83222967]
[1752254400312,0.69694402,2992.4,2991.9,5.83222967]
[1752254400516,0.4484,2992.3,2992.0,2.90563533]
[1752254400728,0.4484,2992.3,2991.9,2.90563533]
[1752254400898,9.4820687,2992.0,2991.6,2.90563533]
[1752254401103,0.55,2991.8,2991.3,2.90563533]
[1752254401336,0.55,2991.8,2990.9,4.06788946]
[1752254401337,0.4484,2991.7,2991.2,2.90563533]
[1752254401639,10.4484,2991.6,2991.3,2.90563533]
[1752254401823,10.4484,2991.6,2990.9,4.06788946]
[1752254401824,0.4484,2991.5,2991.2,2.90563533]
[1752254402002,0.4484,2991.5,2991.1,2.90563533]
[1752254402343,0.4484,2991.5,2990.7,10.59988946]
[1752254402344,13.069,2991.9,2991.3,2.90563533]
[1752254402647,0.4484,2992.0,2991.4,0.03342916]
[1752254402798,0.4484,2992.0,2991.5,2.90563533]
[1752254402799,10.4484,2992.0,2991.5,2.90563533]
[1752254403007,0.4484,2991.9,2991.5,2.90563533]
[1752254403204,0.4484,2992.3,2991.4,2.90563533]
[1752254403431,0.4484,2992.3,2991.3,6.523]
[1752254403432,0.4484,2992.3,2991.5,2.93906337]
[1752254403625,0.4484,2992.3,2991.6,2.90563533]
[1752254403830,10.0,2992.1,2991.5,2.90563533]
[1752254404151,10.0,2991.5,2991.4,2.90563533]
[1752254404355,10.0,2991.5,2991.2,2.9022568]
[1752254404648,10.4484,2991.5,2991.0,0.03343363]
[1752254406621,10.4484,2991.8,2991.0,0.03343363]
[1752254406817,1.94820687,2992.0,2991.0,0.03343363]
[1752254407029,10.0,2992.0,2991.0,0.03343363]
[1752254407341,0.4484,2992.1,2991.0,0.03343363]
[1752254407648,0.4484,2992.1,2990.9,6.521]
[1752254407808,2.22,2993.8,2991.0,0.79573363]
[1752254408016,1.12482323,3000.5,2996.6,3.36221539]
[1752254408317,1.12482323,3000.5,2996.4,3.33725325]
[1752254408318,4.19,2998.6,2997.7,2.22]
[1752254408650,14.0910687,2998.6,2997.9,2.22]
[1752254408861,4.19,2998.6,2998.1,2.22]
[1752254409023,9.4820687,2998.4,2998.2,0.03335334]
[1752254409224,9.4820687,2998.4,2996.8,7.992]
[1752254409225,0.99428687,2998.3,2996.8,7.992]
[1752254409419,9.4820687,2997.5,2997.0,0.55]
[1752254409619,9.4820687,2997.5,2996.9,0.03336781]
[1752254409620,0.4608,2997.4,2996.9,14.875]
[1752254409860,1.45508687,2997.3,2996.8,14.869]
[1752254410075,1.45508687,2997.3,2996.7,14.869]
[1752254410283,0.4608,2997.3,2996.7,14.869]
[1752254410638,0.1664,2996.7,2995.8,15.052]
[1752254410963,0.4608,2996.9,2995.9,0.03337895]
[1752254411341,0.4608,2996.9,2995.8,15.052]
[1752254411686,0.4608,2997.4,2995.8,15.052]
[1752254411886,1.2641,2997.9,2995.9,0.03337895]
[1752254412090,0.4608,2997.9,2995.9,0.03337895]
[1752254412260,0.4608,2997.9,2996.0,0.7985]
[1752254412441,4.19,2998.6,2996.2,0.7985]
[1752254412641,12.1513579,2998.5,2996.3,8.04937449]
[1752254412849,10.4608,2998.4,2996.4,15.478]
[1752254413192,1.63330779,2998.3,2996.5,0.03337226]
[1752254413546,0.4608,2998.2,2996.5,0.03337226]
[1752254413745,0.20941078,2998.1,2996.5,0.03337226]
[1752254414081,0.4608,2998.5,2996.5,0.03337226]
[1752254414282,4.19,2998.6,2996.8,0.55]
[1752254414445,4.19,2998.6,2997.0,0.55]
[1752254414642,4.19,2998.6,2997.1,15.503]
[1752254414982,10.0,2998.5,2997.1,15.503]
[1752254415146,10.0,2998.5,2997.2,8.04436447]
[1752254415349,0.4608,2998.4,2997.2,8.006]
[1752254415654,11.48484798,2998.4,2997.1,15.503]
[1752254415859,10.0,2998.2,2997.1,15.503]
[1752254416054,2.6092848,2998.3,2997.1,15.503]
[1752254416055,0.4608,2998.3,2997.1,15.503]
[1752254416292,0.4608,2998.3,2997.2,0.03336447]
[1752254417652,11.02404798,2997.9,2997.0,8.011]
[1752254417999,0.55,2997.1,2995.3,0.8279]
[1752254418213,10.0,2996.2,2995.3,0.8279]
[1752254418505,0.4608,2996.1,2994.6,0.8279]
[1752254418657,0.4608,2996.1,2994.7,7.771]
[1752254418856,1.59608,2996.0,2994.8,7.77]
[1752254419058,1.59608,2996.0,2994.6,0.8279]
[1752254419059,0.4608,2995.9,2994.6,0.8279]
[1752254419259,10.0,2995.6,2994.7,7.762]
[1752254419453,2.1024048,2995.5,2994.8,7.761]
[1752254419717,10.0,2995.4,2994.8,7.761]
[1752254419874,0.4608,2996.0,2994.9,0.03339009]
[1752254420889,0.4608,2996.0,2994.6,0.8279]
[1752254421058,0.4608,2996.0,2994.7,7.737]
[1752254421366,0.55,2995.9,2995.7,0.1664]
[1752254421567,0.55,2995.9,2994.6,0.8279]
[1752254421568,0.4608,2995.8,2995.1,7.723]
[1752254421771,0.4608,2995.8,2995.5,0.1664]
[1752254422091,0.55,2995.3,2994.9,0.1664]
[1752254422392,0.55,2995.1,2994.9,0.1664]
[1752254422688,0.4608,2995.0,2994.9,0.1664]
[1752254423195,1.0108,2995.0,2994.9,0.1664]
[1752254423490,0.7164,2994.9,2994.2,0.1664]
[1752254423695,10.7164,2994.7,2994.2,0.1664]
[1752254423893,10.55,2994.5,2992.9,2.8019176]
[1752254424093,0.55,2994.2,2993.7,0.1664]
[1752254424258,8.09717768,2995.1,2993.1,7.682]
[1752254424459,0.4608,2994.5,2994.1,0.1664]
[1752254424691,0.4608,2994.5,2993.3,2.8019176]
[1752254424862,0.4608,2994.5,2994.4,0.1664]
[1752254426196,0.4608,2994.5,2993.8,0.03340236]
[1752254426396,0.4608,2994.5,2994.4,0.1664]
[1752254426606,0.55,2994.8,2994.4,0.1664]
[1752254426896,0.4608,2994.7,2994.4,0.1664]
[1752254427283,0.1664,2995.2,2994.6,0.1664]
[1752254428272,0.4608,2995.1,2994.8,2.8019176]
[1752254428488,0.4608,2995.0,2994.8,2.8019176]
[1752254428769,0.4608,2994.9,2994.7,2.8019176]
[1752254428965,0.4608,2994.9,2994.6,2.8019176]
[1752254429274,0.3108,2995.3,2994.5,2.8019176]
[1752254429971,0.3108,2995.3,2994.4,2.8019176]
[1752254430214,0.3108,2995.3,2994.3,7.592]
[1752254430715,0.3108,2995.3,2994.2,10.3789176]
[1752254431218,0.55,2995.1,2994.2,2.8019176]
[1752254431398,0.55,2994.9,2994.2,2.8019176]
[1752254431571,0.55,2994.7,2994.1,2.8019176]
[1752254431772,0.55,2994.7,2994.2,2.8019176]
[1752254432016,0.4608,2994.6,2994.1,2.8019176]
[1752254432302,0.4608,2994.5,2994.2,2.8019176]
[1752254432472,1.0108,2994.9,2994.0,10.8089176]
[1752254432674,0.55,2994.7,2994.0,10.8089176]
[1752254432868,0.4608,2994.6,2994.0,10.8089176]
[1752254433073,0.4608,2994.6,2994.0,8.007]
[1752254433264,0.4608,2994.6,2994.0,10.8089176]
[1752254433473,0.55,2994.5,2994.0,10.8089176]
[1752254433705,0.55,2994.7,2994.0,10.8089176]
[1752254433706,0.4608,2994.4,2994.0,8.007]
[1752254434291,0.4608,2995.5,2994.1,0.46639901]
[1752254434505,0.4608,2995.5,2994.2,2.8019176]
[1752254434827,0.4608,2995.5,2994.8,2.8019176]
[1752254434985,0.4608,2995.5,2994.8,17.8249176]
[1752254435408,0.4608,2995.5,2994.9,2.8019176]
[1752254435591,10.0,2995.8,2994.9,2.8019176]
[1752254435802,0.4608,2995.3,2994.8,17.8249176]
[1752254436123,0.4608,2995.3,2994.9,2.8019176]
[1752254436361,7.85,2995.9,2994.9,2.8019176]
[1752254436362,0.42194538,2995.4,2994.9,2.8019176]
[1752254436602,8.3108,2995.9,2994.9,2.8019176]
[1752254436823,0.83108,2995.8,2995.0,0.03338898]
[1752254437006,0.4608,2995.9,2995.0,0.03338898]
[1752254437206,0.4608,2995.9,2995.2,2.8019176]
[1752254437409,11.02404798,2996.2,2995.5,0.1664]
[1752254437410,0.1664,2996.0,2995.5,0.1664]
[1752254437575,0.4608,2996.0,2995.8,0.1664]
[1752254437771,0.4608,2995.9,2995.2,4.06788946]
[1752254437976,0.55,2995.8,2995.6,0.1664]
[1752254438201,0.1664,2995.8,2995.3,7.6264]
[1752254438900,0.55,2995.7,2995.3,0.1664]
[1752254439098,0.7843,2995.3,2994.8,4.06788946]
[1752254439307,0.7843,2995.3,2994.5,4.10128401]
[1752254440024,0.7843,2995.3,2994.6,7.431]
[1752254440308,10.4621,2995.7,2994.6,7.431]
[1752254440521,1.703374,2995.6,2994.7,0.03339232]
[1752254441079,10.0,2995.7,2994.7,0.50179232]
[1752254441292,0.24414075,2996.1,2994.8,0.7917]
[1752254441616,0.4621,2996.2,2994.9,0.03339009]
[1752254441938,0.4621,2996.2,2995.0,0.4684]
[1752254442221,0.4621,2996.2,2995.1,0.03338786]
[1752254442390,0.4621,2996.2,2995.2,7.396]
[1752254442574,0.4621,2996.2,2995.3,0.03338563]
[1752254442777,0.24930096,2996.3,2995.3,0.03338563]
[1752254442974,1.14491824,2996.3,2995.0,0.4684]
[1752254443208,1.14491824,2996.3,2995.1,7.40738786]
[1752254443411,0.4621,2996.4,2994.8,0.7917]
[1752254443626,0.4621,2996.2,2994.9,7.368]
[1752254443781,0.55,2996.1,2994.9,7.368]
[1752254443973,0.4621,2996.2,2995.0,0.03338898]
[1752254444178,0.4621,2996.2,2995.1,7.36]
[1752254444374,0.4621,2996.2,2995.2,0.03338675]
[1752254444608,0.4621,2996.2,2995.3,7.356]
[1752254444983,0.4621,2996.2,2995.4,7.352]
[1752254445325,11.02404798,2995.7,2994.7,7.344]
[1752254445549,11.5645048,2995.6,2994.7,7.344]
[1752254445838,0.55,2995.5,2994.3,8.7891]
[1752254445991,0.55,2995.5,2993.9,7.333]
[1752254445992,10.0,2994.9,2993.9,7.333]
[1752254446198,10.0,2994.9,2993.8,5.83222967]
[1752254446441,10.0,2994.9,2993.7,0.7811]
[1752254446442,0.55,2994.7,2993.7,0.7811]
[1752254446643,10.55,2994.3,2993.2,5.83222967]
[1752254446945,2.1574048,2994.2,2993.3,0.03340794]
[1752254447106,10.0,2994.3,2993.3,0.03340794]
[1752254447723,0.4621,2994.2,2993.1,14.30862967]
[1752254447905,0.4621,2994.2,2993.2,0.03340906]
[1752254448099,10.24787452,2994.3,2993.4,7.306]
[1752254448405,10.24787452,2994.3,2993.0,5.83222967]
[1752254448406,1.0121,2994.1,2993.0,5.83222967]
[1752254448658,2.33939745,2994.1,2993.0,5.83222967]
[1752254448944,2.33939745,2994.1,2992.5,0.757]
[1752254448945,12.563,2994.0,2992.8,13.12622967]
[1752254449263,0.4621,2993.9,2992.8,5.83322967]
[1752254449404,0.1664,2993.8,2993.3,0.1664]
[1752254449745,0.4621,2993.7,2993.3,0.1664]
[1752254450051,0.4621,2993.6,2993.3,0.1664]
[1752254450404,0.4621,2993.5,2992.8,0.001]
[1752254450636,0.4621,2993.5,2993.1,0.1664]
[1752254450637,11.02404798,2993.4,2993.1,0.1664]
[1752254450940,0.1664,2993.2,2992.8,0.001]
[1752254451319,0.4621,2993.1,2992.8,0.001]
[1752254451807,0.4621,2993.0,2992.8,0.001]
[1752254452305,0.1664,2993.0,2992.8,0.001]
[1752254452498,0.4621,2992.9,2992.8,0.001]
[1752254453507,1.0121,2992.9,2992.8,0.001]
[1752254453914,0.55,2992.8,2991.5,0.7977]
[1752254454116,0.55,2992.8,2990.0,7.50838123]
[1752254454117,10.1664,2992.5,2991.0,1.2661]
[1752254454318,0.4621,2992.4,2991.8,0.1664]
[1752254454724,0.55,2992.3,2991.8,0.1664]
[1752254454955,0.4621,2992.2,2991.8,0.1664]
[1752254455445,0.4621,2992.1,2991.8,0.1664]
[1752254455641,0.42265412,2992.1,2991.8,0.1664]
[1752254455819,0.55,2992.4,2991.8,0.1664]
[1752254456341,0.25543757,2992.5,2991.9,0.03342357]
[1752254456530,0.88605873,2992.9,2992.3,0.1664]
[1752254456846,0.42395873,2992.9,2992.3,0.1664]
[1752254457063,0.55,2992.9,2992.3,0.1664]
[1752254457353,0.25473616,2992.9,2992.3,0.1664]
[1752254457557,0.25473616,2992.9,2992.0,0.4684]
[1752254457558,0.8158,2993.3,2992.4,0.03341799]
[1752254457845,0.67627604,2993.3,2992.8,0.1664]
[1752254458046,0.7777,2993.8,2992.9,0.4684]
[1752254458343,12.19167952,2994.6,2992.9,0.4684]
[1752254458344,0.7777,2994.3,2993.6,0.1664]
[1752254458560,0.1664,2994.2,2993.6,0.1664]
[1752254459218,0.41907694,2994.3,2993.7,0.03340348]
[1752254459423,0.4621,2994.5,2994.1,0.1664]
[1752254460040,0.41061796,2994.5,2994.1,0.1664]
[1752254460355,0.1664,2994.3,2993.8,0.1664]
[1752254460558,1.0121,2994.2,2993.8,0.1664]
[1752254460854,0.4621,2994.1,2993.8,0.1664]
[1752254461066,0.4621,2994.1,2992.8,0.8287]
[1752254461356,10.55,2993.8,2993.4,0.1664]
[1752254461659,10.0,2993.6,2993.3,0.1664]
[1752254461867,10.7164,2993.8,2993.3,0.1664]
[1752254462245,0.1664,2993.8,2993.3,0.1664]
[1752254462569,10.4621,2994.1,2992.9,0.0334124]
[1752254462570,0.55,2994.0,2993.7,0.1664]
[1752254462726,0.4621,2993.9,2992.8,0.8287]
[1752254462922,0.4621,2993.9,2993.5,0.1664]
[1752254463127,0.4621,2993.8,2993.5,0.1664]
[1752254463534,0.4621,2993.7,2993.5,0.1664]
[1752254463858,0.55,2993.8,2993.4,0.1664]
[1752254464044,0.55,2993.6,2993.4,0.1664]
[1752254464250,0.4621,2993.5,2993.2,0.1664]
[1752254464624,0.4621,2993.4,2993.2,0.1664]
[1752254464822,0.4621,2993.4,2992.4,8.8051]
[1752254465022,0.55,2993.3,2992.9,0.1664]
[1752254465219,0.55,2993.4,2992.9,0.1664]
[1752254465419,0.55,2993.4,2992.4,10.15401]
[1752254465420,0.4621,2993.3,2992.4,8.8051]
[1752254465621,0.55,2993.2,2992.7,0.1664]
[1752254466234,10.0,2993.1,2992.7,0.1664]
[1752254466966,0.1664,2993.3,2992.7,0.1664]
[1752254467154,0.4621,2993.6,2992.9,0.1664]
[1752254467155,0.1664,2993.4,2992.9,0.1664]
[1752254467463,10.1664,2993.7,2993.2,0.1664]
[1752254467663,10.6285,2993.7,2993.2,0.1664]
[1752254468168,1.014,2993.6,2993.2,0.1664]
[1752254468567,0.55,2993.4,2992.5,1.39909169]
[1752254468742,0.55,2993.4,2993.0,0.1664]
[1752254468951,10.0,2993.7,2992.6,0.03341575]
[1752254469156,0.55,2993.6,2993.2,0.1664]
[1752254469390,1.014,2993.6,2993.2,0.1664]
[1752254469682,0.1664,2993.9,2993.4,0.1664]
[1752254469853,0.464,2994.1,2993.2,0.4372]
[1752254470060,0.464,2994.1,2993.7,0.1664]
[1752254470240,0.1664,2994.2,2993.7,0.1664]
[1752254470444,0.6304,2994.2,2993.7,0.1664]
[1752254471045,0.6304,2994.2,2992.9,0.7556]
[1752254471046,1.014,2994.1,2992.9,0.7556]
[1752254471246,0.55,2993.8,2993.4,0.1664]
[1752254472567,0.55,2993.8,2993.0,0.47061129]
[1752254472568,2.013,2994.7,2993.7,0.1664]
[1752254472878,0.67823999,2994.5,2993.8,0.03340236]
[1752254473079,0.1664,2994.5,2994.1,0.1664]
[1752254473780,1.014,2994.4,2994.1,0.1664]
[1752254474358,0.55,2994.2,2993.4,0.47060682]
[1752254474566,0.41529252,2994.5,2993.4,0.47060682]
[1752254474769,0.55,2994.4,2994.0,0.1664]
[1752254476400,10.0,2994.3,2994.0,0.1664]
[1752254476551,0.41529252,2994.5,2994.0,0.1664]
[1752254476756,0.55,2994.2,2994.0,0.1664]
[1752254476984,10.55,2994.0,2993.5,0.1664]
[1752254477189,10.55,2994.0,2992.9,6.912]
[1752254477190,10.55,2993.7,2992.9,6.912]
[1752254477399,10.55,2993.7,2993.3,0.1664]
[1752254477400,11.014,2993.7,2993.3,0.1664]
[1752254477738,10.55,2993.5,2993.1,0.1664]
[1752254477858,0.55,2993.5,2993.1,0.1664]
[1752254478194,1.014,2993.5,2993.1,0.1664]
[1752254478593,10.55,2993.2,2992.8,0.1664]
[1752254478894,11.014,2993.2,2992.8,0.1664]
[1752254479285,10.55,2993.2,2992.8,0.1664]
[1752254479763,11.014,2993.2,2992.8,0.1664]
[1752254480682,10.914,2993.2,2992.8,0.1664]
[1752254481293,12.5051365,2993.2,2992.8,0.1664]
[1752254481515,0.464,2993.1,2992.8,0.1664]
[1752254482598,12.5051365,2993.2,2992.8,0.1664]
[1752254482798,0.45,2993.2,2992.8,0.1664]
[1752254483713,0.7164,2993.0,2992.5,0.1664]
[1752254484020,0.7164,2993.0,2992.2,0.1664]
[1752254484021,10.0,2992.5,2992.2,0.1664]
[1752254484420,0.464,2992.9,2991.3,1.2385]
[1752254484421,0.55,2992.8,2991.9,0.03342357]
[1752254484590,0.55,2992.8,2992.0,0.4372]
[1752254484793,0.25666217,2993.0,2992.0,0.4372]
[1752254484993,0.55,2993.2,2992.1,0.83352134]
[1752254485529,10.55,2993.4,2992.2,7.2392]
[1752254486106,0.464,2993.5,2992.3,0.4706191]
[1752254486439,10.0,2993.4,2992.3,0.4372]
[1752254486620,10.0,2992.9,2992.4,6.793]
[1752254487398,0.55,2992.8,2992.1,0.8001]
[1752254487706,10.0,2992.9,2992.2,6.82242022]
[1752254487922,10.0,2992.9,2992.2,6.789]
[1752254488232,0.2560361,2993.0,2992.3,0.4372]
[1752254488391,10.0,2993.4,2992.4,0.75603799]
[1752254488392,0.71882292,2993.3,2992.4,0.75603799]
[1752254488708,0.89838296,2993.7,2992.6,0.7976]
[1752254488905,0.71875057,2993.6,2992.8,0.7976]
[1752254489124,0.71875057,2993.5,2992.9,0.0334124]
[1752254489328,0.89838296,2993.9,2993.0,13.534]
[1752254489635,0.71866627,2993.8,2993.1,0.47061017]
[1752254489837,0.71866627,2993.7,2993.1,0.47061017]
[1752254490145,0.55,2993.9,2992.8,0.7976]
[1752254490347,0.71865182,2993.8,2992.9,6.755]
[1752254490544,0.71869151,2993.7,2992.8,0.7976]
[1752254490745,0.55,2993.7,2992.9,0.0334124]
[1752254490949,1.0020965,2993.8,2992.9,6.7814124]
[1752254491137,0.55,2993.8,2992.9,6.748]
[1752254491452,10.0,2993.7,2992.9,6.748]
[1752254491912,10.0,2993.7,2992.9,7.1852]
[1752254492350,1.014,2993.9,2993.0,0.03341129]
[1752254492848,1.014,2993.9,2993.1,6.721]
[1752254493363,0.55,2993.9,2993.1,6.721]
[1752254493570,0.55,2993.9,2993.1,7.43682]
[1752254494062,0.71928528,2993.8,2993.1,7.43682]
[1752254494243,0.55,2993.9,2993.1,6.721]
[1752254494549,1.014,2993.9,2993.5,0.1664]
[1752254494917,10.0,2994.0,2993.3,0.03340794]
[1752254495118,0.89838296,2994.4,2993.8,0.1664]
[1752254495323,0.71927218,2994.3,2993.8,0.1664]
[1752254495518,0.464,2994.3,2993.8,0.1664]
[1752254495828,10.41529252,2994.5,2993.8,0.1664]
[1752254496023,0.464,2994.3,2993.8,0.1664]
[1752254496355,1.014,2994.2,2993.8,0.1664]
[1752254497170,10.55,2994.0,2993.8,0.1664]
[1752254497464,10.55,2994.0,2993.6,0.7611]
[1752254497465,0.55,2993.8,2993.3,0.1664]
[1752254497635,0.55,2993.6,2993.3,0.1664]
[1752254497833,0.55,2993.8,2993.3,0.1664]
[1752254498147,0.55,2993.4,2991.9,0.8171]
[1752254498481,10.7164,2993.4,2992.8,0.9835]
[1752254498774,11.1807,2993.4,2992.8,0.1664]
[1752254498935,0.55,2993.2,2992.8,0.1664]
[1752254499140,0.4643,2993.1,2992.8,0.1664]
[1752254499390,0.55,2993.2,2992.8,0.1664]
[1752254499565,10.0,2993.4,2992.8,0.474]
[1752254499875,10.0,2993.4,2993.0,0.1664]
[1752254500080,10.4643,2993.4,2993.0,0.1664]
[1752254500456,0.4643,2993.3,2993.0,0.1664]